[Event "Titled Tuesday Blitz July 25 Late 2023"]
[White "Urbina Perez, Juan Antonio"]
[Black "Manukyan, Sargis A."]
[WhiteFideId "2217368"]
[BlackFideId "13303970"]
[WhiteElo "2477"]
[BlackElo "2663"]
[Result "1/2-1/2"]
[Round "4"]
[TimeControl "180+2"]
[Date "2023.07.25"]
[WhiteClock "0:00:08"]
[BlackClock "0:00:17"]
[Board "68"]

1. e4 {[%clk 0:03:00]}  c5 {[%clk 0:03:00]} 2. Nf3 {[%clk 0:03:00]}  d6 {[%clk 0:03:00]} 3. Bb5+ {[%clk 0:03:01]}  Bd7 {[%clk 0:03:01]} 4. c4 {[%clk 0:03:01]}  Nc6 {[%clk 0:03:01]} 5. Nc3 {[%clk 0:03:01]}  Nf6 {[%clk 0:03:01]} 6. d3 {[%clk 0:03:01]}  e5 {[%clk 0:03:02]} 7. h3 {[%clk 0:03:01]}  Nd4 {[%clk 0:03:02]} 8. Bxd7+ {[%clk 0:02:55]}  Nxd7 {[%clk 0:03:02]} 9. Be3 {[%clk 0:02:53]}  Be7 {[%clk 0:03:02]} 10. Bxd4 {[%clk 0:02:51]}  cxd4 {[%clk 0:03:00]} 11. Nd5 {[%clk 0:02:51]}  O-O {[%clk 0:03:00]} 12. O-O {[%clk 0:02:51]}  Nb6 {[%clk 0:03:00]} 13. Nd2 {[%clk 0:02:49]}  Nxd5 {[%clk 0:03:00]} 14. cxd5 {[%clk 0:02:47]}  Rc8 {[%clk 0:03:00]} 15. Rc1 {[%clk 0:02:45]}  Qa5 {[%clk 0:03:00]} 16. a3 {[%clk 0:02:41]}  Qb6 {[%clk 0:02:59]} 17. Qb3 {[%clk 0:02:38]}  Bg5 {[%clk 0:02:57]} 18. Qxb6 {[%clk 0:02:31]}  axb6 {[%clk 0:02:58]} 19. Rxc8 {[%clk 0:02:29]}  Rxc8 {[%clk 0:02:59]} 20. Nc4 {[%clk 0:02:22]}  Be7 {[%clk 0:02:52]} 21. a4 {[%clk 0:02:19]}  Rc5 {[%clk 0:02:47]} 22. b4 {[%clk 0:02:12]}  Rc8 {[%clk 0:02:45]} 23. Ra1 {[%clk 0:02:04]}  Kf8 {[%clk 0:02:42]} 24. Kf1 {[%clk 0:02:04]}  Ke8 {[%clk 0:02:43]} 25. Ke2 {[%clk 0:02:03]}  g6 {[%clk 0:02:32]} 26. Ra3 {[%clk 0:01:52]}  f5 {[%clk 0:02:31]} 27. f3 {[%clk 0:01:51]}  h5 {[%clk 0:02:23]} 28. Ra2 {[%clk 0:01:45]}  Kd8 {[%clk 0:02:20]} 29. Rc2 {[%clk 0:01:43]}  b5 {[%clk 0:02:00]} 30. axb5 {[%clk 0:01:39]}  Bf8 {[%clk 0:01:54]} 31. Kd1 {[%clk 0:01:32]}  Ra8 {[%clk 0:01:49]} 32. Nb6 {[%clk 0:01:31]}  Ra1+ {[%clk 0:01:44]} 33. Rc1 {[%clk 0:01:28]}  Ra2 {[%clk 0:01:40]} 34. Rc8+ {[%clk 0:00:57]}  Ke7 {[%clk 0:01:40]} 35. Rc7+ {[%clk 0:00:58]}  Ke8 {[%clk 0:01:41]} 36. Rxb7 {[%clk 0:00:56]}  Rxg2 {[%clk 0:01:41]} 37. Nd7 {[%clk 0:00:51]}  Bh6 {[%clk 0:01:40]} 38. exf5 {[%clk 0:00:42]}  gxf5 {[%clk 0:01:39]} 39. Nf6+ {[%clk 0:00:41]}  Kd8 {[%clk 0:01:39]} 40. b6 {[%clk 0:00:38]}  Rd2+ {[%clk 0:01:39]} 41. Ke1 {[%clk 0:00:38]}  Rb2 {[%clk 0:01:34]} 42. Rb8+ {[%clk 0:00:34]}  Ke7 {[%clk 0:01:31]} 43. Re8+ {[%clk 0:00:33]}  Kxf6 {[%clk 0:01:26]} 44. b7 {[%clk 0:00:33]}  Rb1+ {[%clk 0:01:15]} 45. Ke2 {[%clk 0:00:33]}  Rb2+ {[%clk 0:01:12]} 46. Kd1 {[%clk 0:00:33]}  Rb1+ {[%clk 0:01:04]} 47. Kc2 {[%clk 0:00:32]}  Rxb4 {[%clk 0:01:05]} 48. b8=Q {[%clk 0:00:32]}  Rxb8 {[%clk 0:01:06]} 49. Rxb8 {[%clk 0:00:32]}  Bf4 {[%clk 0:00:56]} 50. Rg8 {[%clk 0:00:28]}  h4 {[%clk 0:00:52]} 51. Kd1 {[%clk 0:00:28]}  Bg3 {[%clk 0:00:52]} 52. Ke2 {[%clk 0:00:27]}  Kf7 {[%clk 0:00:51]} 53. Rh8 {[%clk 0:00:20]}  Kf6 {[%clk 0:00:47]} 54. Re8 {[%clk 0:00:20]}  Kg5 {[%clk 0:00:39]} 55. Re6 {[%clk 0:00:20]}  Kf4 {[%clk 0:00:35]} 56. Rxd6 {[%clk 0:00:20]}  e4 {[%clk 0:00:35]} 57. dxe4 {[%clk 0:00:19]}  fxe4 {[%clk 0:00:36]} 58. fxe4 {[%clk 0:00:15]}  Kxe4 {[%clk 0:00:37]} 59. Rd8 {[%clk 0:00:15]}  d3+ {[%clk 0:00:36]} 60. Kd1 {[%clk 0:00:14]}  Ke5 {[%clk 0:00:21]} 61. Kd2 {[%clk 0:00:12]}  Kd4 {[%clk 0:00:13]} 62. d6 {[%clk 0:00:12]}  Kd5 {[%clk 0:00:13]} 63. Kxd3 {[%clk 0:00:11]}  Bxd6 {[%clk 0:00:12]} 64. Ke3 {[%clk 0:00:10]}  Ke5 {[%clk 0:00:12]} 65. Kf3 {[%clk 0:00:09]}  Be7 {[%clk 0:00:12]} 66. Re8 {[%clk 0:00:09]}  Ke6 {[%clk 0:00:13]} 67. Kg4 {[%clk 0:00:09]}  Kf7 {[%clk 0:00:14]} 68. Ra8 {[%clk 0:00:09]}  Bf6 {[%clk 0:00:15]} 69. Ra6 {[%clk 0:00:08]}  Kg6 {[%clk 0:00:15]} 70. Rc6 {[%clk 0:00:09]}  Kf7 {[%clk 0:00:15]} 71. Kf5 {[%clk 0:00:09]}  Bd8 {[%clk 0:00:15]} 72. Rd6 {[%clk 0:00:09]}  Ba5 {[%clk 0:00:15]} 73. Rd7+ {[%clk 0:00:09]}  Ke8 {[%clk 0:00:15]} 74. Rh7 {[%clk 0:00:08]}  Be1 {[%clk 0:00:16]} 75. Ke6 {[%clk 0:00:08]}  Kd8 {[%clk 0:00:15]} 76. Kd6 {[%clk 0:00:08]}  Bg3+ {[%clk 0:00:15]} 77. Ke6 {[%clk 0:00:08]}  Kc8 {[%clk 0:00:15]} 78. Rd7 {[%clk 0:00:07]}  Kb8 {[%clk 0:00:15]} 79. Rd5 {[%clk 0:00:06]}  Kc8 {[%clk 0:00:15]} 80. Ke7 {[%clk 0:00:06]}  Kc7 {[%clk 0:00:15]} 81. Rc5+ {[%clk 0:00:06]}  Kb6 {[%clk 0:00:16]} 82. Rc2 {[%clk 0:00:05]}  Kb5 {[%clk 0:00:16]} 83. Ke6 {[%clk 0:00:06]}  Kb4 {[%clk 0:00:17]} 84. Kd5 {[%clk 0:00:06]}  Kb3 {[%clk 0:00:17]} 85. Rc6 {[%clk 0:00:06]}  Kb4 {[%clk 0:00:18]} 86. Kd4 {[%clk 0:00:06]}  Bf2+ {[%clk 0:00:17]} 87. Kd5 {[%clk 0:00:04]}  Bg3 {[%clk 0:00:18]} 88. Rc8 {[%clk 0:00:04]}  Kb5 {[%clk 0:00:19]} 89. Rc2 {[%clk 0:00:03]}  Kb4 {[%clk 0:00:19]} 90. Kd4 {[%clk 0:00:03]}  Kb3 {[%clk 0:00:18]} 91. Rc8 {[%clk 0:00:03]}  Kb4 {[%clk 0:00:17]} 92. Ke4 {[%clk 0:00:04]}  Kb5 {[%clk 0:00:17]} 93. Kf5 {[%clk 0:00:05]}  Kb6 {[%clk 0:00:18]} 94. Kg4 {[%clk 0:00:05]}  Kb7 {[%clk 0:00:18]} 95. Rc3 {[%clk 0:00:05]}  Bf2 {[%clk 0:00:15]} 96. Rf3 {[%clk 0:00:04]}  Be1 {[%clk 0:00:16]} 97. Rf6 {[%clk 0:00:03]}  Kc7 {[%clk 0:00:16]} 98. Ra6 {[%clk 0:00:03]}  Kd7 {[%clk 0:00:16]} 99. Kf5 {[%clk 0:00:03]}  Bg3 {[%clk 0:00:16]} 100. Re6 {[%clk 0:00:04]}  Kc7 {[%clk 0:00:15]} 101. Re4 {[%clk 0:00:04]}  Kd7 {[%clk 0:00:16]} 102. Rd4+ {[%clk 0:00:04]}  Ke7 {[%clk 0:00:15]} 103. Re4+ {[%clk 0:00:04]}  Kd6 {[%clk 0:00:15]} 104. Kg4 {[%clk 0:00:04]}  Kd5 {[%clk 0:00:16]} 105. Re2 {[%clk 0:00:05]}  Kd6 {[%clk 0:00:15]} 106. Ra2 {[%clk 0:00:06]}  Ke5 {[%clk 0:00:16]} 107. Ra8 {[%clk 0:00:06]}  Ke4 {[%clk 0:00:16]} 108. Re8+ {[%clk 0:00:07]}  Kd5 {[%clk 0:00:17]} 109. Kf5 {[%clk 0:00:07]}  Kd4 {[%clk 0:00:17]} 110. Re4+ {[%clk 0:00:07]}  Kd5 {[%clk 0:00:17]} 111. Rg4 {[%clk 0:00:08]}  Kd6 {[%clk 0:00:17]} 112. Ke4 {[%clk 0:00:08]}  Ke6 {[%clk 0:00:17]} 113. Kf3 {[%clk 0:00:08]}  Kf6 {[%clk 0:00:17]} 1/2-1/2


[Site "https://www.chess.com"]

[Event "Titled Tuesday Blitz July 25 Late 2023"]
[White "Hamedi Nia, Vesal"]
[Black "brm72"]
[WhiteFideId "12542253"]
[WhiteElo "2477"]
[BlackElo "2658"]
[Result "0-1"]
[Round "4"]
[TimeControl "180+2"]
[Date "2023.07.25"]
[WhiteClock "0:00:13"]
[BlackClock "0:00:09"]
[Board "69"]

1. d4 {[%clk 0:03:00]}  Nf6 {[%clk 0:02:59]} 2. c4 {[%clk 0:03:01]}  g6 {[%clk 0:02:59]} 3. Nc3 {[%clk 0:03:00]}  d5 {[%clk 0:03:00]} 4. Bf4 {[%clk 0:02:59]}  Bg7 {[%clk 0:02:59]} 5. e3 {[%clk 0:02:59]}  O-O {[%clk 0:02:59]} 6. cxd5 {[%clk 0:03:00]}  Nxd5 {[%clk 0:03:00]} 7. Nxd5 {[%clk 0:03:00]}  Qxd5 {[%clk 0:02:57]} 8. Bxc7 {[%clk 0:03:01]}  Nc6 {[%clk 0:02:54]} 9. Ne2 {[%clk 0:03:00]}  Bf5 {[%clk 0:02:43]} 10. Nc3 {[%clk 0:02:59]}  Qd7 {[%clk 0:02:43]} 11. Bg3 {[%clk 0:02:59]}  Rac8 {[%clk 0:01:57]} 12. Bd3 {[%clk 0:02:55]}  Bxd3 {[%clk 0:01:43]} 13. Qxd3 {[%clk 0:02:56]}  Nb4 {[%clk 0:01:44]} 14. Qd2 {[%clk 0:02:54]}  e5 {[%clk 0:01:43]} 15. O-O {[%clk 0:02:43]}  exd4 {[%clk 0:01:42]} 16. exd4 {[%clk 0:02:44]}  Qxd4 {[%clk 0:01:39]} 17. Qxd4 {[%clk 0:02:42]}  Bxd4 {[%clk 0:01:40]} 18. Bd6 {[%clk 0:02:42]}  Nc2 {[%clk 0:01:33]} 19. Rac1 {[%clk 0:02:31]}  Rfd8 {[%clk 0:01:31]} 20. Be7 {[%clk 0:01:34]}  Rd7 {[%clk 0:01:20]} 21. Nb5 {[%clk 0:01:28]}  Bxb2 {[%clk 0:01:05]} 22. Nxa7 {[%clk 0:01:28]}  Rc4 {[%clk 0:00:42]} 23. Rb1 {[%clk 0:01:11]}  Bd4 {[%clk 0:00:41]} 24. Bg5 {[%clk 0:00:42]}  Bxa7 {[%clk 0:00:40]} 25. Rfc1 {[%clk 0:00:40]}  Na3 {[%clk 0:00:25]} 26. Rxc4 {[%clk 0:00:31]}  Nxc4 {[%clk 0:00:26]} 27. Rc1 {[%clk 0:00:30]}  Ne5 {[%clk 0:00:22]} 28. Rc8+ {[%clk 0:00:19]}  Kg7 {[%clk 0:00:21]} 29. h3 {[%clk 0:00:19]}  h6 {[%clk 0:00:19]} 30. Bf4 {[%clk 0:00:16]}  Nd3 {[%clk 0:00:17]} 31. Bg3 {[%clk 0:00:16]}  Bd4 {[%clk 0:00:16]} 32. h4 {[%clk 0:00:15]}  Be5 {[%clk 0:00:15]} 33. Re8 {[%clk 0:00:12]}  Bxg3 {[%clk 0:00:15]} 34. fxg3 {[%clk 0:00:12]}  Nc5 {[%clk 0:00:14]} 35. Kh2 {[%clk 0:00:12]}  h5 {[%clk 0:00:15]} 36. a3 {[%clk 0:00:11]}  Ne6 {[%clk 0:00:15]} 37. Rb8 {[%clk 0:00:11]}  Kf6 {[%clk 0:00:13]} 38. Kh3 {[%clk 0:00:12]}  Ke5 {[%clk 0:00:13]} 39. g4 {[%clk 0:00:12]}  Nf4+ {[%clk 0:00:13]} 40. Kg3 {[%clk 0:00:12]}  Rd3+ {[%clk 0:00:12]} 41. Kf2 {[%clk 0:00:12]}  hxg4 {[%clk 0:00:12]} 42. Rxb7 {[%clk 0:00:13]}  g3+ {[%clk 0:00:11]} 43. Ke1 {[%clk 0:00:13]}  Nxg2+ {[%clk 0:00:10]} 44. Ke2 {[%clk 0:00:14]}  Nf4+ {[%clk 0:00:11]} 45. Ke1 {[%clk 0:00:14]}  g2 {[%clk 0:00:10]} 46. Rb5+ {[%clk 0:00:14]}  Ke4 {[%clk 0:00:10]} 47. Rg5 {[%clk 0:00:15]}  Kf3 {[%clk 0:00:09]} 48. h5 {[%clk 0:00:14]}  gxh5 {[%clk 0:00:08]} 49. a4 {[%clk 0:00:15]}  Ra3 {[%clk 0:00:09]} 50. Kd2 {[%clk 0:00:15]}  Ra1 {[%clk 0:00:09]} 51. Kc3 {[%clk 0:00:13]}  g1=Q {[%clk 0:00:09]} 0-1


[Site "https://www.chess.com"]

[Event "Titled Tuesday Blitz July 25 Late 2023"]
[White "Moore, Nicholas"]
[Black "Ehlvest, Jaan"]
[WhiteFideId "4303709"]
[BlackFideId "4500016"]
[WhiteElo "2452"]
[BlackElo "2626"]
[Result "0-1"]
[Round "4"]
[TimeControl "180+2"]
[Date "2023.07.25"]
[WhiteClock "0:00:07"]
[BlackClock "0:01:44"]
[Board "71"]

1. c4 {[%clk 0:03:00]}  e5 {[%clk 0:02:56]} 2. g3 {[%clk 0:03:00]}  c6 {[%clk 0:02:54]} 3. d4 {[%clk 0:02:59]}  Bb4+ {[%clk 0:02:54]} 4. Nc3 {[%clk 0:02:48]}  d6 {[%clk 0:02:51]} 5. Bg2 {[%clk 0:02:44]}  Nf6 {[%clk 0:02:50]} 6. e3 {[%clk 0:02:43]}  Bxc3+ {[%clk 0:02:49]} 7. bxc3 {[%clk 0:02:43]}  O-O {[%clk 0:02:49]} 8. c5 {[%clk 0:02:27]}  dxc5 {[%clk 0:02:44]} 9. Ne2 {[%clk 0:02:07]}  Qc7 {[%clk 0:02:30]} 10. Ba3 {[%clk 0:01:49]}  b6 {[%clk 0:02:28]} 11. O-O {[%clk 0:01:44]}  Rd8 {[%clk 0:02:27]} 12. Qc2 {[%clk 0:01:33]}  Ba6 {[%clk 0:02:26]} 13. dxc5 {[%clk 0:01:27]}  Nbd7 {[%clk 0:02:26]} 14. cxb6 {[%clk 0:01:17]}  axb6 {[%clk 0:02:27]} 15. Be7 {[%clk 0:01:01]}  Re8 {[%clk 0:02:23]} 16. Bxf6 {[%clk 0:01:00]}  Nxf6 {[%clk 0:02:24]} 17. Rfd1 {[%clk 0:00:59]}  e4 {[%clk 0:02:22]} 18. h4 {[%clk 0:00:44]}  Bd3 {[%clk 0:02:15]} 19. Qb2 {[%clk 0:00:43]}  c5 {[%clk 0:02:14]} 20. Nf4 {[%clk 0:00:28]}  Bc4 {[%clk 0:02:14]} 21. a3 {[%clk 0:00:28]}  h6 {[%clk 0:02:12]} 22. Rd2 {[%clk 0:00:27]}  g5 {[%clk 0:02:10]} 23. hxg5 {[%clk 0:00:28]}  hxg5 {[%clk 0:02:11]} 24. Nh3 {[%clk 0:00:29]}  Qe5 {[%clk 0:02:10]} 25. Qxb6 {[%clk 0:00:25]}  Kg7 {[%clk 0:02:09]} 26. Qd6 {[%clk 0:00:25]}  Bd3 {[%clk 0:02:03]} 27. Qxe5 {[%clk 0:00:23]}  Rxe5 {[%clk 0:02:04]} 28. Bf1 {[%clk 0:00:22]}  c4 {[%clk 0:02:03]} 29. Bxd3 {[%clk 0:00:20]}  exd3 {[%clk 0:01:59]} 30. Kg2 {[%clk 0:00:17]}  Ne4 {[%clk 0:01:58]} 31. Rb2 {[%clk 0:00:14]}  Rea5 {[%clk 0:01:55]} 32. Rb4 {[%clk 0:00:12]}  Rxa3 {[%clk 0:01:53]} 33. Rxa3 {[%clk 0:00:12]}  Rxa3 {[%clk 0:01:52]} 34. Rxc4 {[%clk 0:00:13]}  d2 {[%clk 0:01:52]} 35. Rd4 {[%clk 0:00:13]}  Ra1 {[%clk 0:01:52]} 36. Kf3 {[%clk 0:00:11]}  f5 {[%clk 0:01:47]} 37. Ke2 {[%clk 0:00:11]}  Re1+ {[%clk 0:01:46]} 38. Kf3 {[%clk 0:00:08]}  g4+ {[%clk 0:01:46]} 39. Kf4 {[%clk 0:00:08]}  gxh3 {[%clk 0:01:44]} 40. Kxf5 {[%clk 0:00:07]} 0-1


[Site "https://www.chess.com"]

[Event "Titled Tuesday Blitz July 25 Late 2023"]
[White "Omelja, Artem"]
[Black "Goncalves, Davi Sulzbacher"]
[WhiteFideId "14119846"]
[BlackFideId "2154510"]
[WhiteElo "2624"]
[BlackElo "2446"]
[Result "1-0"]
[Round "4"]
[TimeControl "180+2"]
[Date "2023.07.25"]
[WhiteClock "0:00:03"]
[BlackClock "0:00:00"]
[Board "72"]

1. d4 {[%clk 0:03:00]}  Nf6 {[%clk 0:02:59]} 2. c4 {[%clk 0:03:00]}  g6 {[%clk 0:02:59]} 3. Nc3 {[%clk 0:03:00]}  d5 {[%clk 0:03:00]} 4. Bg5 {[%clk 0:03:00]}  Bg7 {[%clk 0:02:59]} 5. Bxf6 {[%clk 0:03:00]}  Bxf6 {[%clk 0:03:00]} 6. cxd5 {[%clk 0:03:01]}  c6 {[%clk 0:02:44]} 7. dxc6 {[%clk 0:03:01]}  Nxc6 {[%clk 0:02:45]} 8. e3 {[%clk 0:03:00]}  O-O {[%clk 0:02:43]} 9. Nf3 {[%clk 0:03:00]}  Bg4 {[%clk 0:02:43]} 10. Be2 {[%clk 0:03:00]}  e5 {[%clk 0:02:38]} 11. d5 {[%clk 0:02:49]}  Nb4 {[%clk 0:02:23]} 12. a3 {[%clk 0:02:42]}  Na6 {[%clk 0:02:16]} 13. O-O {[%clk 0:02:40]}  e4 {[%clk 0:01:57]} 14. Nxe4 {[%clk 0:02:36]}  Bxb2 {[%clk 0:01:57]} 15. Rb1 {[%clk 0:02:36]}  Bxa3 {[%clk 0:01:57]} 16. Rxb7 {[%clk 0:02:36]}  Nc5 {[%clk 0:01:54]} 17. Nxc5 {[%clk 0:02:18]}  Bxc5 {[%clk 0:01:55]} 18. Rb1 {[%clk 0:02:15]}  a5 {[%clk 0:01:49]} 19. e4 {[%clk 0:02:14]}  a4 {[%clk 0:01:48]} 20. Ra1 {[%clk 0:02:13]}  a3 {[%clk 0:01:46]} 21. Ne5 {[%clk 0:02:08]}  Bxe2 {[%clk 0:01:45]} 22. Qxe2 {[%clk 0:02:09]}  Re8 {[%clk 0:01:27]} 23. Nd3 {[%clk 0:02:07]}  Bd4 {[%clk 0:01:19]} 24. Ra2 {[%clk 0:02:07]}  Qh4 {[%clk 0:01:13]} 25. e5 {[%clk 0:01:56]}  Qg5 {[%clk 0:00:57]} 26. Re1 {[%clk 0:01:49]}  Bc3 {[%clk 0:00:54]} 27. f4 {[%clk 0:01:46]}  Qd8 {[%clk 0:00:51]} 28. d6 {[%clk 0:01:20]}  Bxe1 {[%clk 0:00:51]} 29. Qxe1 {[%clk 0:01:20]}  Qb6+ {[%clk 0:00:51]} 30. Kf1 {[%clk 0:01:04]}  Qb5 {[%clk 0:00:44]} 31. Qe2 {[%clk 0:00:58]}  Qb1+ {[%clk 0:00:37]} 32. Kf2 {[%clk 0:00:56]}  Ra4 {[%clk 0:00:32]} 33. d7 {[%clk 0:00:49]}  Rf8 {[%clk 0:00:25]} 34. g3 {[%clk 0:00:30]}  Qb3 {[%clk 0:00:21]} 35. Nc5 {[%clk 0:00:23]}  Qb6 {[%clk 0:00:19]} 36. Qe3 {[%clk 0:00:24]}  Ra5 {[%clk 0:00:16]} 37. Ne4 {[%clk 0:00:21]}  Qe6 {[%clk 0:00:15]} 38. Nf6+ {[%clk 0:00:19]}  Kg7 {[%clk 0:00:16]} 39. Rxa3 {[%clk 0:00:19]}  Rxa3 {[%clk 0:00:15]} 40. Qxa3 {[%clk 0:00:20]}  Rb8 {[%clk 0:00:15]} 41. Qc3 {[%clk 0:00:09]}  Ra8 {[%clk 0:00:14]} 42. Qd3 {[%clk 0:00:03]}  Ra2+ {[%clk 0:00:13]} 43. Kf3 {[%clk 0:00:04]}  Qc6+ {[%clk 0:00:12]} 44. Ne4 {[%clk 0:00:04]}  Ra8 {[%clk 0:00:11]} 45. d8=Q {[%clk 0:00:04]}  Rxd8 {[%clk 0:00:11]} 46. Qxd8 {[%clk 0:00:05]}  Qc2 {[%clk 0:00:08]} 47. Qf6+ {[%clk 0:00:05]}  Kf8 {[%clk 0:00:08]} 48. Qd8+ {[%clk 0:00:06]}  Kg7 {[%clk 0:00:09]} 49. Qd2 {[%clk 0:00:03]}  Qb3+ {[%clk 0:00:09]} 50. Qe3 {[%clk 0:00:04]}  Qd5 {[%clk 0:00:10]} 51. Qe2 {[%clk 0:00:03]}  Qb3+ {[%clk 0:00:10]} 52. Kf2 {[%clk 0:00:04]}  Qb6+ {[%clk 0:00:10]} 53. Qe3 {[%clk 0:00:04]}  Qc6 {[%clk 0:00:10]} 54. Kf3 {[%clk 0:00:05]}  Qc2 {[%clk 0:00:10]} 55. g4 {[%clk 0:00:06]}  Qd1+ {[%clk 0:00:10]} 56. Qe2 {[%clk 0:00:06]}  Qb3+ {[%clk 0:00:11]} 57. Kg2 {[%clk 0:00:06]}  Qd5 {[%clk 0:00:11]} 58. Qf3 {[%clk 0:00:06]}  Qa2+ {[%clk 0:00:10]} 59. Nf2 {[%clk 0:00:06]}  Qc2 {[%clk 0:00:10]} 60. h3 {[%clk 0:00:07]}  Qb2 {[%clk 0:00:10]} 61. Kg3 {[%clk 0:00:08]}  Qc2 {[%clk 0:00:10]} 62. f5 {[%clk 0:00:07]}  Qc5 {[%clk 0:00:09]} 63. Qf4 {[%clk 0:00:06]}  h6 {[%clk 0:00:08]} 64. f6+ {[%clk 0:00:05]}  Kh7 {[%clk 0:00:09]} 65. h4 {[%clk 0:00:06]}  Qc3+ {[%clk 0:00:09]} 66. Kg2 {[%clk 0:00:06]}  Qb2 {[%clk 0:00:09]} 67. g5 {[%clk 0:00:06]}  h5 {[%clk 0:00:10]} 68. Qe4 {[%clk 0:00:06]}  Qc3 {[%clk 0:00:09]} 69. e6 {[%clk 0:00:06]}  Qc7 {[%clk 0:00:07]} 70. e7 {[%clk 0:00:06]}  Qd8 {[%clk 0:00:04]} 71. Qf3 {[%clk 0:00:05]}  Qc8 {[%clk 0:00:03]} 72. Qd3 {[%clk 0:00:04]}  Qa8+ {[%clk 0:00:04]} 73. Qe4 {[%clk 0:00:04]}  Qc8 {[%clk 0:00:04]} 74. Nh3 {[%clk 0:00:04]}  Qa8 {[%clk 0:00:05]} 75. Qf3 {[%clk 0:00:03]}  Qc8 {[%clk 0:00:05]} 76. Nf4 {[%clk 0:00:03]}  Qa8 {[%clk 0:00:05]} 77. Kg3 {[%clk 0:00:03]}  Qb8 {[%clk 0:00:05]} 78. Qe4 {[%clk 0:00:03]}  Qa8 {[%clk 0:00:06]} 79. Qe3 {[%clk 0:00:02]}  Qb8 {[%clk 0:00:06]} 80. Qf3 {[%clk 0:00:02]}  Qa8 {[%clk 0:00:06]} 81. e8=Q {[%clk 0:00:02]}  Qxe8 {[%clk 0:00:06]} 82. Nxh5 {[%clk 0:00:03]}  gxh5 {[%clk 0:00:05]} 83. Qxh5+ {[%clk 0:00:04]}  Kg8 {[%clk 0:00:05]} 84. Qf3 {[%clk 0:00:04]}  Qb8+ {[%clk 0:00:05]} 85. Kg4 {[%clk 0:00:04]}  Qc8+ {[%clk 0:00:06]} 86. Kh5 {[%clk 0:00:05]}  Qe6 {[%clk 0:00:04]} 87. Qd3 {[%clk 0:00:04]}  Qe8 {[%clk 0:00:03]} 88. Qf5 {[%clk 0:00:04]}  Qe2+ {[%clk 0:00:03]} 89. Qg4 {[%clk 0:00:04]}  Qe4 {[%clk 0:00:00]} 90. Qxe4 {[%clk 0:00:03]} 1-0


[Site "https://www.chess.com"]

[Event "Titled Tuesday Blitz July 25 Late 2023"]
[White "Tanaka, Taira Tyler"]
[Black "Arnold, Ken"]
[WhiteFideId "7002351"]
[BlackFideId "2056836"]
[WhiteElo "2623"]
[BlackElo "2443"]
[Result "1-0"]
[Round "4"]
[TimeControl "180+2"]
[Date "2023.07.25"]
[WhiteClock "0:00:53"]
[BlackClock "0:00:16"]
[Board "73"]

1. d4 {[%clk 0:03:00]}  Nf6 {[%clk 0:02:59]} 2. Nc3 {[%clk 0:03:01]}  e6 {[%clk 0:02:59]} 3. e4 {[%clk 0:03:00]}  d5 {[%clk 0:02:58]} 4. e5 {[%clk 0:03:01]}  Nfd7 {[%clk 0:02:59]} 5. f4 {[%clk 0:03:01]}  c5 {[%clk 0:02:59]} 6. Nf3 {[%clk 0:03:01]}  Nc6 {[%clk 0:02:59]} 7. Be3 {[%clk 0:03:01]}  cxd4 {[%clk 0:02:58]} 8. Nxd4 {[%clk 0:03:01]}  Be7 {[%clk 0:02:54]} 9. Bd3 {[%clk 0:02:52]}  Nc5 {[%clk 0:02:47]} 10. O-O {[%clk 0:02:52]}  Nxd3 {[%clk 0:02:47]} 11. Qxd3 {[%clk 0:02:47]}  O-O {[%clk 0:02:44]} 12. Rae1 {[%clk 0:02:44]}  Nxd4 {[%clk 0:02:37]} 13. Bxd4 {[%clk 0:02:45]}  Qc7 {[%clk 0:02:34]} 14. f5 {[%clk 0:02:41]}  Qc4 {[%clk 0:02:27]} 15. f6 {[%clk 0:02:27]}  Qxd3 {[%clk 0:02:25]} 16. cxd3 {[%clk 0:02:27]}  Bb4 {[%clk 0:02:18]} 17. fxg7 {[%clk 0:02:23]}  Rd8 {[%clk 0:02:13]} 18. Re3 {[%clk 0:02:20]}  Bxc3 {[%clk 0:02:12]} 19. bxc3 {[%clk 0:02:19]}  b6 {[%clk 0:02:08]} 20. Rf6 {[%clk 0:02:18]}  Kxg7 {[%clk 0:01:57]} 21. Rg3+ {[%clk 0:02:16]}  Kf8 {[%clk 0:01:51]} 22. Rgf3 {[%clk 0:02:08]}  Rd7 {[%clk 0:01:47]} 23. Rxe6 {[%clk 0:02:08]}  Re7 {[%clk 0:01:46]} 24. Rh6 {[%clk 0:02:07]}  Ke8 {[%clk 0:01:28]} 25. Rxh7 {[%clk 0:02:07]}  Kd7 {[%clk 0:01:12]} 26. Rfxf7 {[%clk 0:02:06]}  Rxf7 {[%clk 0:01:10]} 27. Rxf7+ {[%clk 0:02:07]}  Ke6 {[%clk 0:01:09]} 28. Rf6+ {[%clk 0:02:07]}  Ke7 {[%clk 0:01:09]} 29. h4 {[%clk 0:02:07]}  Be6 {[%clk 0:01:08]} 30. h5 {[%clk 0:01:59]}  Rg8 {[%clk 0:01:02]} 31. Kf2 {[%clk 0:01:53]}  Rg5 {[%clk 0:01:00]} 32. h6 {[%clk 0:01:52]}  Rh5 {[%clk 0:00:59]} 33. Kf3 {[%clk 0:01:41]}  Rh4 {[%clk 0:00:52]} 34. g3 {[%clk 0:01:37]}  Rh3 {[%clk 0:00:47]} 35. Kf4 {[%clk 0:01:35]}  Rh1 {[%clk 0:00:44]} 36. g4 {[%clk 0:01:23]}  Rh4 {[%clk 0:00:42]} 37. Rg6 {[%clk 0:01:21]}  Kf7 {[%clk 0:00:42]} 38. Rg7+ {[%clk 0:01:20]}  Kf8 {[%clk 0:00:41]} 39. Rg6 {[%clk 0:00:54]}  Kf7 {[%clk 0:00:41]} 40. Rxe6 {[%clk 0:00:54]}  Kxe6 {[%clk 0:00:41]} 41. Kg5 {[%clk 0:00:55]}  Rh3 {[%clk 0:00:34]} 42. Kg6 {[%clk 0:00:55]}  Rxd3 {[%clk 0:00:19]} 43. h7 {[%clk 0:00:55]}  Rg3 {[%clk 0:00:18]} 44. h8=Q {[%clk 0:00:52]}  Rxg4+ {[%clk 0:00:16]} 45. Kh5 {[%clk 0:00:53]} 1-0


[Site "https://www.chess.com"]

[Event "Titled Tuesday Blitz July 25 Late 2023"]
[White "Zavgorodniy, Sergiy"]
[Black "EsmeraldasAnderson03"]
[WhiteFideId "14110148"]
[WhiteElo "2609"]
[BlackElo "2405"]
[Result "0-1"]
[Round "4"]
[TimeControl "180+2"]
[Date "2023.07.25"]
[WhiteClock "0:00:00"]
[BlackClock "0:00:09"]
[Board "79"]

1. d4 {[%clk 0:03:00]}  d5 {[%clk 0:02:59]} 2. c4 {[%clk 0:03:01]}  dxc4 {[%clk 0:02:59]} 3. Nf3 {[%clk 0:03:00]}  a6 {[%clk 0:03:00]} 4. e3 {[%clk 0:03:00]}  Nf6 {[%clk 0:03:00]} 5. Bxc4 {[%clk 0:02:59]}  e6 {[%clk 0:03:01]} 6. O-O {[%clk 0:02:59]}  c5 {[%clk 0:03:01]} 7. Qe2 {[%clk 0:02:59]}  Nbd7 {[%clk 0:02:58]} 8. Rd1 {[%clk 0:02:57]}  cxd4 {[%clk 0:02:52]} 9. Nxd4 {[%clk 0:02:54]}  Be7 {[%clk 0:02:48]} 10. Nc3 {[%clk 0:02:53]}  O-O {[%clk 0:02:47]} 11. e4 {[%clk 0:02:37]}  Qc7 {[%clk 0:02:47]} 12. Bg5 {[%clk 0:02:34]}  b5 {[%clk 0:02:33]} 13. Bb3 {[%clk 0:02:21]}  Bb7 {[%clk 0:02:33]} 14. Rac1 {[%clk 0:02:19]}  Nc5 {[%clk 0:02:00]} 15. Bc2 {[%clk 0:02:14]}  Rfd8 {[%clk 0:01:26]} 16. b4 {[%clk 0:02:10]}  Ncd7 {[%clk 0:01:21]} 17. Bb3 {[%clk 0:02:07]}  Qb6 {[%clk 0:01:16]} 18. e5 {[%clk 0:02:00]}  Nxe5 {[%clk 0:01:02]} 19. Qxe5 {[%clk 0:02:00]}  Ng4 {[%clk 0:01:00]} 20. Qf4 {[%clk 0:01:29]}  Bxg5 {[%clk 0:00:59]} 21. Qxg5 {[%clk 0:01:24]}  Rxd4 {[%clk 0:00:57]} 22. Rxd4 {[%clk 0:00:57]}  Qxd4 {[%clk 0:00:57]} 23. Qh4 {[%clk 0:00:15]}  Rc8 {[%clk 0:00:32]} 24. h3 {[%clk 0:00:15]}  Qf4 {[%clk 0:00:31]} 25. Rd1 {[%clk 0:00:11]}  Qf6 {[%clk 0:00:28]} 26. Qxg4 {[%clk 0:00:08]}  Qxc3 {[%clk 0:00:26]} 27. Qf4 {[%clk 0:00:04]}  Qf6 {[%clk 0:00:23]} 28. Qd6 {[%clk 0:00:02]}  Qg5 {[%clk 0:00:16]} 29. f3 {[%clk 0:00:02]}  Bxf3 {[%clk 0:00:14]} 30. Rd2 {[%clk 0:00:00]}  Bd5 {[%clk 0:00:09]} 0-1


[Site "https://www.chess.com"]